bitfinex-derivatives/quotes_SOLF0:USTF0_20241025
["timestamp","ask_amount","ask_price","bid_price","bid_amount"]
[1729840708539,12.49539234,173.15,173.09,5.08324208]
[1729840708747,15.38459234,173.15,173.11,2.8898]
[1729840709051,2.8892,173.15,173.11,2.8898]
[1729840709553,15.38449234,173.16,173.1,2.89]
[1729840709753,12.49539234,173.16,173.08,2.5798]
[1729840710052,12.49539234,173.16,173.09,5.08359037]
[1729840710246,2.8892,173.15,173.11,2.8898]
[1729840712252,7.98946204,173.12,173.11,2.8898]
[1729840712845,7.98946204,173.13,173.11,2.8898]
[1729840713157,7.98946204,173.13,173.08,2.5798]
[1729840713359,7.98946204,173.13,173.09,7.97475332]
[1729840713559,7.98946204,173.13,173.09,2.8901]
[1729840715355,3.8117,173.2,173.1,2.8899]
[1729840715663,3.8117,173.2,173.08,10.56926204]
[1729840715664,7.98946204,173.14,173.08,10.56926204]
[1729840715960,7.98946204,173.14,173.09,13.07379048]
[1729840716160,7.98946204,173.14,173.09,7.98946204]
[1729840717265,7.98946204,173.14,173.11,2.8899]
[1729840719867,2.8892,173.15,173.11,2.8899]
[1729840720065,2.8892,173.15,173.12,5.12]
[1729840720459,7.98946204,173.16,173.12,5.12]
[1729840720669,2.8895,173.14,173.12,5.12]
[1729840722867,10.87896204,173.14,173.12,5.12]
[1729840723070,7.98946204,173.13,173.08,7.6998]
[1729840723259,7.98946204,173.11,173.08,5.12]
[1729840723774,2.8902,173.1,173.07,2.8905]
[1729840723971,7.98946204,173.09,173.06,5.12]
[1729840724176,10.87996204,173.08,173.06,5.12]
[1729840724474,10.87996204,173.08,173.05,5.12]
[1729840724877,7.98946204,173.08,173.05,5.12]
[1729840725076,5.12,173.15,173.03,2.8911]
[1729840725077,7.98946204,173.06,173.03,2.8911]
[1729840725277,7.98946204,173.05,173.04,5.08279495]
[1729840725477,7.98946204,173.05,173.03,5.12]
[1729840728287,7.98946204,173.06,173.03,5.12]
[1729840728979,7.98946204,173.06,173.03,8.0111]
[1729840729278,5.12,173.15,173.03,5.12]
[1729840729486,7.98946204,173.07,173.04,5.08280926]
[1729840729680,7.98946204,173.07,173.04,2.891]
[1729840730288,10.88006204,173.07,173.03,8.0112]
[1729840730485,10.88006204,173.07,173.04,5.08290596]
[1729840730786,10.88006204,173.07,173.03,8.0112]
[1729840731172,10.88006204,173.07,173.04,5.08290596]
[1729840731375,10.88006204,173.07,173.03,8.0112]
[1729840731581,10.88006204,173.07,173.04,5.08305064]
[1729840731784,10.88006204,173.07,173.03,8.0112]
[1729840731980,10.88006204,173.07,173.04,5.08305064]
[1729840732180,10.88006204,173.07,173.03,8.0112]
[1729840734086,10.88006204,173.07,173.04,5.08331029]
[1729840734286,7.98946204,173.06,173.03,8.0112]
[1729840734480,2.891,173.05,173.03,5.12]
[1729840734785,7.98946204,173.06,173.03,5.12]
[1729840735977,7.98946204,173.04,173.01,8.0115]
[1729840736284,7.98946204,173.04,173.02,5.08397635]
[1729840736479,7.98946204,173.04,173.01,5.12]
[1729840736681,7.98946204,173.04,173.02,5.08428857]
[1729840736885,7.98946204,173.04,173.01,5.12]
[1729840737183,7.98946204,173.04,173.02,5.08430977]
[1729840737489,7.98946204,173.04,173.01,5.12]
[1729840737680,7.98946204,173.04,173.02,5.0841815]
[1729840737881,7.98946204,173.04,173.01,5.12]
[1729840738076,7.98946204,173.04,173.02,5.08419156]
[1729840738275,7.98946204,173.04,173.01,5.12]
[1729840738484,7.98946204,173.04,173.02,5.08406796]
[1729840738679,7.98946204,173.04,173.01,8.0115]
[1729840738875,7.98946204,173.04,173.02,5.08404609]
[1729840739075,7.98946204,173.06,173.02,2.8912]
[1729840740090,10.88026204,173.06,173.03,5.08393576]
[1729840740288,10.88026204,173.06,173.02,2.8912]
[1729840740687,10.88026204,173.06,173.03,5.08391307]
[1729840740880,10.88026204,173.06,173.01,5.12]
[1729840741082,7.98946204,173.04,173.02,5.08391211]
[1729840741283,7.98946204,173.04,172.98,13.10946204]
[1729840741684,7.98946204,173.04,173.01,2.8914]
[1729840741878,7.98946204,173.04,173.02,5.08387636]
[1729840742085,7.98946204,173.04,172.98,13.10946204]
[1729840742279,4.96,173.11,172.98,13.10946204]
[1729840742280,7.98946204,173.03,172.99,5.08385817]
[1729840742483,7.98946204,173.03,173.0,5.08385817]
[1729840742687,7.98946204,173.03,172.98,5.12]
[1729840742889,7.98946204,173.03,173.0,2.8917]
[1729840743181,7.98946204,173.02,172.97,62.44]
[1729840743389,7.98946204,173.02,172.98,10.04399215]
[1729840743590,7.98946204,173.02,172.99,7.97607658]
[1729840743894,7.98946204,173.02,172.99,2.8918]
[1729840744795,7.98946204,173.0,172.99,2.8918]
[1729840745791,7.98946204,173.0,172.93,2.4807]
[1729840746097,7.98946204,172.99,172.96,2.8923]
[1729840746284,7.98946204,172.99,172.97,5.08317079]
[1729840746485,7.98946204,172.99,172.96,2.8923]
[1729840746693,7.98946204,172.99,172.97,5.08246508]
[1729840746900,7.98946204,172.99,172.96,2.8923]
[1729840747100,7.98946204,172.99,172.97,5.08249123]
[1729840747290,7.98946204,172.99,172.96,2.8923]
[1729840747490,7.98946204,172.99,172.97,5.08169902]
[1729840747689,7.98946204,172.99,172.96,2.8923]
[1729840747894,7.98946204,172.99,172.97,5.08169719]
[1729840748198,7.98946204,172.99,172.94,4.96]
[1729840748394,7.98946204,172.99,172.97,2.8922]
[1729840749392,7.98946204,173.01,172.98,2.8919]
[1729840749893,7.98946204,173.01,172.95,7.98946204]
[1729840750095,2.8909,173.05,172.97,7.98946204]
[1729840750301,7.98946204,173.03,172.98,10.04010981]
[1729840750601,7.98946204,173.03,173.01,2.8915]
[1729840751394,7.98946204,173.03,172.99,5.07950033]
[1729840751594,7.98946204,173.03,172.98,4.96]
[1729840751887,2.8906,173.07,172.99,13.06871308]
[1729840752094,7.98946204,173.07,173.01,7.98946204]
[1729840752294,7.98946204,173.07,173.02,4.96]
[1729840752701,7.98946204,173.07,173.04,2.8909]
[1729840753295,7.98946204,173.07,173.02,4.96]
[1729840753901,7.98946204,173.07,173.04,2.891]
[1729840754494,2.89,173.1,173.06,2.8906]
[1729840754700,7.98946204,173.09,173.02,12.94946204]
[1729840755198,10.87966204,173.09,173.05,2.8908]
[1729840755700,7.98946204,173.07,173.05,2.8908]
[1729840757200,7.98946204,173.07,173.02,12.94946204]
[1729840757402,7.98946204,173.09,173.06,2.8906]
[1729840759000,2.89,173.11,173.03,7.98946204]
[1729840759198,7.98946204,173.1,173.04,5.07922583]
[1729840759504,7.98946204,173.07,173.06,2.8906]
[1729840759990,2.8901,173.1,173.06,2.8906]
[1729840760190,7.98946204,173.09,173.06,2.8906]
[1729840760699,7.98946204,173.09,173.04,5.07941517]
[1729840760901,7.98946204,173.09,173.07,2.8904]
[1729840762899,7.98946204,173.09,173.02,4.96]
[1729840763098,7.98946204,173.07,173.04,2.891]
[1729840763901,10.88016204,173.06,173.02,7.8512]
[1729840764298,10.88016204,173.06,173.03,5.07974842]
[1729840765207,7.98946204,173.04,173.03,5.07974842]
[1729840765603,7.98946204,173.04,173.01,7.8514]
[1729840765812,7.98946204,173.02,172.95,2.4498]
[1729840766006,7.98946204,172.99,172.97,2.8921]
[1729840767908,7.98946204,172.99,172.96,4.96]
[1729840768512,7.98946204,172.99,172.98,2.892]
[1729840768811,7.98946204,172.99,172.96,4.96]
[1729840769015,7.98946204,172.97,172.96,4.96]
[1729840771015,7.98946204,172.97,172.95,2.8925]
[1729840773217,7.98946204,172.97,172.94,4.88]
[1729840773512,7.98946204,173.0,172.95,5.07623242]
[1729840773713,7.98946204,173.0,172.94,4.88]
[1729840773915,7.98946204,173.01,172.95,13.06566149]
[1729840774113,7.98946204,173.01,172.99,2.8917]
[1729840774313,7.98946204,173.01,172.94,4.88]
[1729840774518,7.98946204,172.98,172.94,4.88]
[1729840774719,7.98946204,172.98,172.95,5.07555759]
[1729840775017,7.98946204,172.98,172.94,4.88]
[1729840775315,7.98946204,172.98,172.95,5.07581548]
[1729840775518,7.98946204,172.98,172.97,2.8922]
[1729840775704,7.98946204,172.98,172.94,4.88]
[1729840775705,7.98946204,172.99,172.94,4.88]
[1729840776008,7.98946204,172.99,172.95,5.07563893]
[1729840776208,7.98946204,172.99,172.97,2.8921]
[1729840776416,7.98946204,172.99,172.95,5.07556522]
[1729840776719,7.98946204,172.99,172.94,12.86946204]
[1729840776918,7.98946204,172.99,172.95,5.07555887]
[1729840777117,7.98946204,172.99,172.94,12.86946204]
[1729840777416,7.98946204,172.99,172.98,2.892]
[1729840777617,7.98946204,172.99,172.95,5.07556111]
[1729840778615,7.98946204,172.99,172.97,2.8921]
[1729840779414,7.98946204,172.99,172.98,2.892]
[1729840780615,2.8911,173.04,172.96,7.98946204]
[1729840780815,7.98946204,173.02,172.97,5.07573765]
[1729840781219,7.98946204,173.02,172.96,7.98946204]
[1729840782018,7.98946204,173.02,172.97,5.07604145]
[1729840782225,7.98946204,173.02,172.97,7.98946204]
[1729840782409,7.98946204,173.02,173.0,2.8916]
[1729840783219,7.98946204,173.02,172.98,4.9]
[1729840784225,7.98946204,173.02,173.01,2.8915]
[1729840784625,7.98946204,173.03,173.01,2.8915]
[1729840785128,4.9,173.07,173.03,2.8912]
[1729840785129,7.7906,173.07,173.03,2.8912]
[1729840785322,7.98946204,173.04,173.03,2.8912]
[1729840785521,7.98946204,173.06,173.01,7.98946204]
[1729840786019,7.98946204,173.06,173.02,4.9]
[1729840786723,7.98946204,173.06,173.05,2.8909]
[1729840787822,337.0,173.19,173.02,4.9]
[1729840787823,7.98946204,173.09,173.03,7.98946204]
[1729840788024,4.9,173.13,173.04,7.98946204]
[1729840788222,7.98946204,173.1,173.04,7.98946204]
[1729840788529,7.98946204,173.11,173.05,7.98946204]
[1729840788718,7.98946204,173.11,173.06,4.88]
[1729840789226,3.6779,173.18,173.07,13.06937302]
[1729840789227,7.98946204,173.12,173.07,13.06937302]
[1729840789415,7.98946204,173.12,173.07,7.98946204]
[1729840789624,7.98946204,173.12,173.11,2.8899]
[1729840790521,7.98946204,173.14,173.12,2.8896]
[1729840790729,7.98946204,173.16,173.1,4.88]
[1729840790917,7.98946204,173.16,173.11,7.98946204]
[1729840791119,7.98946204,173.16,173.13,2.8894]
[1729840791326,4.88,173.21,173.11,7.98946204]
[1729840791525,7.98946204,173.17,173.11,7.98946204]
[1729840793223,7.98946204,173.17,173.13,2.8894]
[1729840794230,2.8887,173.18,173.13,2.8894]
[1729840794429,7.98946204,173.17,173.14,2.8894]
[1729840796433,7.98946204,173.15,173.11,7.98946204]
[1729840796731,7.98946204,173.15,173.12,4.88]
[1729840796937,7.98946204,173.14,173.09,7.98946204]
[1729840797128,7.98946204,173.14,173.1,4.88]
[1729840798229,7.98946204,173.14,173.12,2.8896]
[1729840799839,7.98946204,173.14,173.12,2.8897]
[1729840800036,2.8891,173.16,173.12,2.8897]
[1729840800231,7.98946204,173.14,173.07,2.441]
[1729840800431,6.1746,173.23,173.07,4.88]
[1729840800432,7.98946204,173.11,173.07,4.88]
[1729840800831,7.98946204,173.09,173.04,7.98946204]
[1729840801034,7.98946204,173.07,173.05,4.88]
[1729840801232,7.98946204,173.07,173.04,4.88]
[1729840801441,7.98946204,173.06,173.04,4.88]
[1729840801737,7.98946204,173.06,173.04,7.771]
[1729840801934,7.98946204,173.06,173.04,2.891]
[1729840802140,7.98946204,173.07,173.05,2.8909]
[1729840802633,2.8898,173.12,173.08,2.8904]
[1729840802833,7.98946204,173.12,173.07,7.98946204]
[1729840803029,7.98946204,173.12,173.07,12.78946204]
[1729840803938,7.98946204,173.1,173.08,2.8903]
[1729840804336,15.37630714,173.13,173.08,2.8903]
[1729840806239,15.37630714,173.13,173.07,4.8]
[1729840806240,15.37590714,173.15,173.11,2.8898]
[1729840806541,15.37590714,173.15,173.07,4.8]
[1729840806737,2.8891,173.16,173.12,2.8896]
[1729840807046,12.48660714,173.17,173.07,17.28660714]
[1729840807339,15.37560714,173.17,173.12,2.8896]
[1729840808243,12.48660714,173.15,173.01,1.2717]
[1729840808437,12.48660714,173.13,173.02,17.55649108]
[1729840808742,12.48660714,173.13,173.06,2.8906]
[1729840808936,2.8901,173.1,173.06,2.8906]
[1729840811943,12.48660714,173.1,173.03,4.8]
[1729840812247,12.48660714,173.08,173.03,4.8]
[1729840812442,12.48660714,173.06,173.03,4.8]
[1729840813145,2.8909,173.05,173.03,4.8]
[1729840813341,12.48660714,173.06,172.99,5.06993525]
[1729840813544,12.48660714,173.06,173.0,4.8]
[1729840813943,2.8912,173.04,173.0,4.8]
[1729840815351,2.8912,173.04,173.0,7.6916]
[1729840818444,12.48660714,173.06,173.0,4.8]
[1729840818752,2.8915,173.02,172.98,7.692]
[1729840819552,2.8915,173.02,172.98,2.892]
[1729840820251,4.8,173.07,172.97,4.8]
[1729840820252,2.8912,173.03,172.99,2.8919]
[1729840820547,2.891,173.05,172.99,2.8918]
[1729840820743,12.48660714,173.06,172.98,5.07229121]
[1729840820943,12.48660714,173.06,172.97,4.8]
[1729840821651,12.48660714,173.06,172.98,5.07203481]
[1729840821840,2.8911,173.04,173.0,2.8916]
[1729840822046,2.8911,173.04,172.97,4.8]
[1729840822244,12.48660714,173.08,172.98,5.07195406]
[1729840822450,12.48660714,173.08,172.99,18.74351624]
[1729840822650,12.48660714,173.11,173.0,7.6265091]
[1729840822851,2.8903,173.09,173.04,2.8909]
[1729840823049,12.48660714,173.11,173.01,9.8721091]
[1729840823552,12.48660714,173.11,173.01,17.28660714]
[1729840823753,12.48660714,173.11,173.02,5.07096414]
[1729840824141,12.48660714,173.09,173.01,5.0712755]
[1729840824343,12.48660714,173.09,173.01,4.8]
[1729840824641,2.8912,173.04,173.01,4.8]
[1729840825557,12.48660714,173.07,173.01,4.8]
[1729840826555,12.48660714,173.07,173.0,5.4461]
[1729840826752,12.48660714,173.07,173.0,10.2461]
[1729840827454,2.8912,173.04,173.0,10.2461]
[1729840829050,2.8912,173.04,173.0,5.4461]
[1729840829251,2.8912,173.04,173.0,10.2461]
[1729840830259,12.48660714,173.09,173.0,7.3544]
[1729840830555,12.48660714,173.09,173.0,12.42619717]
[1729840830757,12.48660714,173.09,173.03,2.8912]
[1729840831353,2.8907,173.07,173.03,2.8912]
[1729840831752,2.8904,173.08,173.0,12.42619717]
[1729840832055,2.8904,173.08,173.0,7.3544]
[1729840832255,2.8904,173.08,173.03,2.8911]
[1729840832562,12.48660714,173.05,172.83,5.7891]
[1729840832762,12.48660714,172.98,172.9,5.9342]
[1729840832959,2.8924,172.97,172.92,2.8929]
[1729840833160,12.48660714,172.98,172.9,5.9342]
[1729840833553,2.8923,172.97,172.91,2.8931]
[1729840834059,2.8923,172.97,172.9,5.9342]
[1729840834252,2.8923,172.97,172.92,2.893]
[1729840835961,2.8923,172.97,172.93,4.64]
[1729840838057,12.48660714,172.98,172.93,7.5328]
[1729840838258,12.48660714,173.01,172.93,4.64]
[1729840838863,2.8919,172.99,172.94,2.8926]
[1729840839261,2.8919,172.99,172.93,4.64]
[1729840839262,12.48660714,173.01,172.93,4.64]
[1729840839562,12.48660714,173.03,172.96,2.8922]
[1729840839758,12.48660714,173.03,172.97,4.64]
[1729840840762,12.48660714,173.01,172.97,4.64]
[1729840841267,2.8917,173.0,172.97,7.5322]
[1729840841456,12.48660714,173.01,172.97,4.64]
[1729840843359,2.8918,173.0,172.97,4.64]
[1729840846158,2.8918,173.0,172.97,7.5322]
[1729840847964,2.8916,173.01,172.97,7.5322]
[1729840849664,2.8916,173.01,172.97,4.64]
[1729840849860,2.8916,173.01,172.98,2.8919]
[1729840850058,2.8916,173.01,172.97,4.64]
[1729840850558,2.8916,173.01,172.97,7.5321]
[1729840852465,2.8916,173.01,172.98,2.892]
[1729840862485,10.89162999,173.01,172.98,2.892]
[1729840862878,2.8918,173.0,172.97,4.64]
[1729840863078,8.00002999,172.99,172.97,4.64]
[1729840863681,10.89202999,172.98,172.92,5.00663709]
[1729840863883,8.00002999,172.97,172.93,4.5]
[1729840864386,8.00002999,172.97,172.94,2.8927]
[1729840864786,8.00002999,172.97,172.93,4.5]
[1729840865190,8.00002999,172.95,172.9,1.2942]
[1729840865391,8.00002999,172.95,172.92,4.5]
[1729840865589,8.00002999,172.95,172.93,2.8929]
[1729840865785,8.00002999,172.94,172.91,4.5]
[1729840866286,2.8927,172.95,172.91,7.3931]
[1729840866684,2.8927,172.95,172.91,4.5]
[1729840868491,2.8928,172.94,172.86,12.51050432]
[1729840868693,2.8928,172.94,172.89,9.51264514]
[1729840869286,12.51050432,172.94,172.9,2.8933]
[1729840869590,12.51050432,172.92,172.85,4.5]
[1729840869784,12.51050432,172.9,172.85,4.5]
[1729840870199,2.8937,172.89,172.85,4.5]
[1729840871094,12.51050432,172.9,172.85,4.5]
[1729840871301,12.51050432,172.92,172.85,4.5]
[1729840871601,12.51050432,172.94,172.85,17.01050432]
[1729840871799,12.51050432,172.94,172.85,4.5]
[1729840872298,15.40370432,172.92,172.85,4.5]
[1729840872902,15.40370432,172.92,172.88,2.8937]
[1729840874002,2.8929,172.93,172.89,2.8934]
[1729840874397,12.51050432,172.94,172.85,4.5]
[1729840874598,2.8931,172.92,172.88,2.8937]
[1729840875508,12.51050432,172.94,172.85,4.5]
[1729840876202,2.8931,172.92,172.88,2.8937]
[1729840877099,2.8932,172.91,172.88,2.8937]
[1729840878897,12.51050432,172.94,172.88,2.8937]
[1729840879093,2.8931,172.92,172.88,2.8937]
[1729840880806,2.8931,172.92,172.86,4.5]
[1729840881202,2.8929,172.93,172.86,4.5]
[1729840881397,12.51050432,172.88,172.83,5.00944855]
[1729840881604,12.51050432,172.86,172.81,2.8948]
[1729840882010,12.51050432,172.86,172.81,7.3948]
[1729840882706,12.51050432,172.86,172.82,2.8947]
[1729840884308,15.40460432,172.86,172.82,2.8947]
[1729840886406,15.40460432,172.86,172.82,7.3947]
[1729840887510,2.8942,172.85,172.82,7.3947]
[1729840888417,8.00695387,172.84,172.82,7.3947]
[1729840888716,10.90085387,172.87,172.84,2.8943]
[1729840888908,8.00695387,172.87,172.84,2.8943]
[1729840890214,4.5,172.94,172.84,8.00695387]
[1729840890215,8.00695387,172.89,172.84,8.00695387]
[1729840890412,12.50189512,172.92,172.82,4.5]
[1729840890716,12.50189512,172.87,172.8,5.00434333]
[1729840890906,12.50189512,172.87,172.79,6.9845]
[1729840892210,2.8942,172.86,172.82,2.8946]
[1729840892417,12.50189512,172.87,172.79,6.9845]
[1729840893513,2.8944,172.85,172.81,2.8948]
[1729840895118,2.894,172.87,172.83,2.8945]
[1729840895316,2.894,172.87,172.83,7.3945]
[1729840895706,12.50189512,172.89,172.85,2.8942]
[1729840896111,12.50189512,172.91,172.83,4.5]
[1729840896316,12.50189512,172.91,172.87,2.8939]
[1729840896707,12.50189512,172.91,172.87,4.5]
[1729840897614,2.8934,172.9,172.87,7.3938]
[1729840897904,2.4745,172.97,172.87,7.3938]
[1729840897905,12.50189512,172.93,172.87,7.3938]
[1729840898117,12.50189512,172.93,172.87,4.5]
[1729840898421,4.5,172.99,172.87,4.5]
[1729840898613,12.50189512,172.97,172.87,4.5]
[1729840898813,2.8926,172.95,172.9,2.8934]
[1729840899009,2.8926,172.95,172.87,4.5]
[1729840899010,12.50189512,172.97,172.91,4.5]
[1729840899207,2.8922,172.98,172.94,2.8927]
[1729840899416,12.50189512,173.01,172.92,12.50189512]
[1729840900013,15.39359512,173.01,172.96,2.8922]
[1729840900215,2.5043,173.04,172.96,4.5]
[1729840900216,15.00619512,173.04,172.96,4.5]
[1729840900515,2.8915,173.02,172.97,2.8921]
[1729840900820,12.50189512,173.04,172.96,4.5]
[1729840901717,2.4126,173.1,172.96,17.00189512]
[1729840901718,12.50189512,173.06,172.96,17.00189512]
[1729840901916,12.50189512,173.06,172.97,3.757]
[1729840902721,12.50189512,173.06,173.0,2.8917]
[1729840902722,2.891,173.05,173.0,2.8917]
[1729840903013,2.891,173.05,173.01,4.5]
[1729840903616,12.50189512,173.06,173.01,4.5]
[1729840903923,12.50189512,173.08,173.01,4.5]
[1729840904319,15.39229512,173.08,173.03,2.8911]
[1729840904523,12.50189512,173.11,173.01,4.5]
[1729840905124,2.8904,173.09,173.04,2.8909]
[1729840906721,2.8904,173.08,173.04,2.8909]
[1729840907231,2.8904,173.08,173.03,2.8912]
[1729840908219,2.8904,173.08,173.03,7.3912]
[1729840908626,2.8907,173.07,173.03,4.5]
[1729840908921,12.50189512,173.06,172.97,3.757]
[1729840909127,12.50189512,173.06,172.98,4.5]
[1729840909327,2.8912,173.04,172.98,4.5]
[1729840909513,12.50189512,173.06,172.98,4.5]
[1729840909924,2.8909,173.05,173.0,2.8916]
[1729840910119,2.8909,173.05,172.98,4.5]
[1729840910619,4.5,173.13,172.98,17.00189512]
[1729840910620,12.50189512,173.08,172.98,17.00189512]
[1729840911217,2.8906,173.07,173.02,2.8913]
[1729840911416,12.50189512,173.08,173.02,2.8913]
[1729840911417,12.50189512,173.08,173.03,4.5]
[1729840912222,2.8908,173.06,173.03,4.5]
[1729840914029,12.50189512,173.12,173.03,4.5]
[1729840914827,2.8902,173.09,173.03,4.5]
[1729840915628,4.5,173.13,173.03,7.3911]
[1729840915629,2.8905,173.08,173.03,7.3911]
[1729840915818,12.50189512,173.1,173.03,7.3911]
[1729840916627,2.8904,173.08,173.03,7.3911]
[1729840916833,12.50189512,173.1,173.03,7.3911]
[1729840918325,2.8904,173.08,173.04,2.891]
[1729840918731,12.50189512,173.12,173.03,4.5]
[1729840919036,2.8902,173.1,173.03,4.5]
[1729840919730,2.8902,173.1,173.06,2.8906]
[1729840920728,2.8902,173.1,173.07,2.8905]
[1729840921527,2.8899,173.11,173.07,2.8905]
[1729840927439,2.8901,173.1,173.06,2.8907]
[1729840928342,7.9926374,173.09,173.06,2.8907]
[1729840928541,10.8832374,173.07,173.03,7.3911]
[1729840928749,7.9926374,173.07,173.03,7.3911]
[1729840928936,7.9926374,173.07,173.03,4.5]
[1729840929742,7.9926374,173.05,173.0,7.9926374]
[1729840929936,7.9926374,173.05,173.01,4.42]
[1729840930339,12.49460875,173.08,173.01,4.42]
[1729840931139,12.49460875,173.08,172.97,16.25160875]
[1729840931343,12.49460875,173.08,172.98,4.42]
[1729840931750,12.49460875,173.08,173.0,2.8917]
[1729840932248,12.49460875,173.08,172.98,4.42]
[1729840932445,2.891,173.05,173.02,2.8914]
[1729840932748,2.891,173.05,173.02,7.3114]
[1729840933341,12.49460875,173.08,173.02,4.42]
[1729840933545,2.8911,173.04,173.02,4.42]
[1729840934542,2.8914,173.02,173.0,4.42]
[1729840934742,12.49460875,173.06,173.0,4.42]
[1729840935048,2.8917,173.0,172.98,4.42]
[1729840936146,12.49460875,173.03,172.92,1.2412]
[1729840936345,12.49460875,173.03,172.93,4.42]
[1729840936646,12.49460875,172.99,172.93,4.42]
[1729840936944,12.49460875,172.99,172.92,3.7025]
[1729840937140,12.49460875,172.99,172.92,8.1225]
[1729840937449,2.8924,172.96,172.92,11.0154]
[1729840937637,12.49460875,172.99,172.92,4.42]
[1729840938042,2.8929,172.94,172.88,2.8936]
[1729840938243,2.8929,172.94,172.89,4.42]
[1729840938447,2.8929,172.94,172.85,12.49460875]
[1729840938448,2.8929,172.94,172.9,4.42]
[1729840939350,2.8929,172.94,172.9,7.3134]
[1729840943752,2.8925,172.96,172.92,2.893]
[1729840943954,12.49460875,172.99,172.9,4.42]
[1729840944151,2.8922,172.97,172.94,2.8927]
[1729840944954,12.49460875,172.99,172.94,2.8927]
[1729840945148,2.8921,172.98,172.94,2.8927]
[1729840945849,12.49460875,172.99,172.91,2.5723]
[1729840946046,12.49460875,173.01,172.91,16.29760875]
[1729840946250,12.49460875,173.01,172.95,2.8924]
[1729840946848,12.49460875,173.01,172.97,2.8922]
[1729840948159,2.8914,173.02,172.99,2.8919]
[1729840949063,2.8914,173.02,172.94,16.91460875]
[1729840949268,2.8914,173.02,172.98,2.892]
[1729840950766,12.49460875,173.01,172.95,4.42]
[1729840950969,12.49460875,172.99,172.92,4.42]
[1729840951173,12.49460875,172.96,172.92,4.42]
[1729840951674,12.49460875,172.99,172.92,4.42]
[1729840952376,2.8923,172.97,172.93,2.8928]
[1729840953273,2.8921,172.98,172.95,2.8925]
[1729840953573,12.49460875,173.01,172.92,4.42]
[1729840953767,12.49460875,173.01,172.97,2.8922]
[1729840953768,15.38630875,173.01,172.97,2.8922]
[1729840953968,2.8917,173.01,172.97,2.8922]
[1729840954571,12.49460875,173.05,172.96,4.4]
[1729840954770,2.8912,173.04,173.0,2.8916]
[1729840957371,2.8915,173.02,172.98,2.8919]
[1729840957763,2.8915,173.02,172.96,4.4]
[1729840957963,2.8913,173.03,172.99,2.8919]
[1729840959375,2.8914,173.02,172.99,2.8919]
[1729840960376,2.8913,173.03,172.98,2.892]
[1729840960675,12.49460875,173.05,172.96,4.4]
[1729840961571,2.8914,173.02,172.98,2.892]
[1729840962376,2.8914,173.02,172.99,2.8919]
[1729840965678,2.8917,173.01,172.97,2.8922]
[1729840966078,2.8917,173.01,172.96,4.4]
[1729840966279,2.8917,173.0,172.97,7.2922]
[1729840966580,12.49460875,173.03,172.97,7.2922]
[1729840967074,2.8917,173.0,172.97,7.2922]
[1729840967278,2.8917,173.0,172.96,7.2924]
[1729840969580,2.8917,173.0,172.97,2.8922]
[1729840969979,2.8917,173.01,172.96,4.4]
[1729840971676,2.8917,173.01,172.97,2.8922]
[1729840972984,2.8914,173.02,172.98,2.8919]
[1729840973186,4.4,173.04,172.96,4.4]
[1729840973485,12.49460875,173.05,172.96,4.4]
[1729840973783,2.8913,173.03,172.96,4.4]
[1729840974172,12.49460875,173.05,172.96,4.4]
[1729840974374,10.89015418,173.03,172.99,2.8918]
[1729840975682,10.89035418,173.01,172.98,2.892]
[1729840980990,7.99875418,173.05,172.99,7.99875418]
[1729840981384,7.99875418,173.05,173.0,4.4]
[1729840981989,399.44,173.12,173.0,4.4]
[1729840982196,7.99875418,173.06,173.0,12.39875418]
[1729840982587,2.8909,173.05,173.02,2.8913]
[1729840983799,2.8909,173.05,173.01,2.8915]
[1729840986289,7.99875418,173.03,172.97,2.8922]
[1729840986490,7.99875418,173.01,172.97,7.2922]
[1729840987398,2.8918,173.0,172.97,7.2922]
[1729840988792,7.99875418,173.01,172.97,4.4]
[1729840988989,2.8917,173.0,172.97,4.4]